lending/lending_fUSD_20260411
["ID","MTS","AMOUNT","RATE_DAILY","PERIOD"]
[420287986,1775911833990,-408.0,0.0002,2]
[420287987,1775911834022,-200.0,0.0002,10]
[420287988,1775911834072,-466.01853179,0.00020082,2]
[420287989,1775911834094,-300.0,0.000201,10]
[420287990,1775911834115,-335.8,0.00020384,2]
[420287991,1775911834138,-446.784,0.000207,2]
[420287992,1775911834151,-241.0,0.00021,2]
[420287993,1775911834167,-516.0,0.00021,2]
[420287994,1775911834183,-1228.0,0.00021,2]
[420287995,1775911834198,-501.0,0.00021,2]
[420287996,1775911834214,-408.0,0.00021,2]
[420287997,1775911834231,-524.06611693,0.00021009,2]
[420287998,1775911834250,-1586.36,0.00021267,2]
[420287999,1775911834260,-1586.36,0.00021267,2]
[420288000,1775911834280,-1586.36,0.00021267,2]
[420288001,1775911834297,-1716.26,0.00021267,2]
[420288002,1775911834315,-451.0,0.0002135,5]
[420288003,1775911834336,-361.0,0.0002135,5]
[420288004,1775911834375,-241.0,0.00022,2]
[420288005,1775911834384,-516.0,0.00022,2]
[420288006,1775911834394,-1228.0,0.00022,2]
[420288007,1775911834424,-501.0,0.00022,2]
[420288008,1775911834433,-408.0,0.00022,2]
[420288009,1775911834443,-512.0925,0.000221,2]
[420288010,1775911834469,-4233.60982337,0.00022257,2]
[420288011,1775911834479,-3774.0,0.00022318,2]
[420288012,1775911834488,-1000.0,0.000227,2]
[420288013,1775911834523,-524.06611693,0.00022732,2]
[420288014,1775911834533,-285.115546,0.00022845,14]
[420288015,1775911834543,-199.693737,0.00022845,14]
[420288016,1775911834557,-241.0,0.00023,2]
[420288017,1775911834571,-516.0,0.00023,2]
[420288018,1775911834589,-1228.0,0.00023,2]
[420288019,1775911834599,-501.0,0.00023,2]
[420288020,1775911834612,-408.0,0.00023,2]
[420288021,1775911834622,-5000.0,0.00023199,2]
[420288022,1775911834632,-1730.0,0.000233,7]
[420288023,1775911834643,-288.0,0.00023499,2]
[420288024,1775911834655,-586.9474,0.000235,2]
[420288025,1775911834666,-360.0,0.00023775,2]
[420288026,1775911834682,-298.44646254,0.0002386,2]
[420288027,1775911834692,-241.0,0.00024,2]
[420288028,1775911834701,-516.0,0.00024,2]
[420288029,1775911834715,-1228.0,0.00024,2]
[420288030,1775911834724,-501.0,0.00024,2]
[420288031,1775911834734,-408.0,0.00024,2]
[420288032,1775911834743,-500.0,0.00024027,2]
[420288033,1775911834756,-466.0,0.00024051,2]
[420288034,1775911834765,-183.69,0.00024062,2]
[420288035,1775911834781,-628.0,0.000241,2]
[420288036,1775911834794,-262.32,0.00024126,2]
[420288037,1775911835082,-524.06611693,0.00024455,2]
[420288038,1775911835093,-262.32,0.00024589,2]
[420288039,1775911835106,-196.9571764,0.00024658,2]
[420288040,1775911835120,-1116.0,0.0002468,2]
[420288041,1775911835141,-150.0,0.00024732,2]
[420288042,1775911835151,-150.0,0.00024732,2]
[420288043,1775911835162,-168.53003241,0.00024732,4]
[420288044,1775911835182,-164.31917393,0.00024732,4]
[420288045,1775911835194,-150.0,0.00024732,2]
[420288046,1775911835205,-150.0,0.00024732,2]
[420288047,1775911835226,-150.0,0.00024732,2]
[420288048,1775911835239,-150.0,0.00024732,2]
[420288049,1775911835252,-150.0,0.00024732,2]
[420288050,1775911835296,-214.58454632,0.00024732,4]
[420288051,1775911835308,-150.0,0.00024732,2]
[420288052,1775911835318,-200.98192153,0.00024732,2]
[420288053,1775911835349,-150.0,0.00024732,2]
[420288054,1775911835358,-150.0,0.00024732,2]
[420288055,1775911835375,-163.83195837,0.00024732,4]
[420288056,1775911835399,-168.53003241,0.00024759,4]
[420288057,1775911835413,-164.31917393,0.00024759,4]
[420288058,1775911835438,-214.58454632,0.00024759,4]
[420288059,1775911835449,-163.83195837,0.00024759,4]
[420288060,1775911835463,-150.0,0.00024762,4]
[420288061,1775911835481,-150.0,0.00024763,4]
[420288062,1775911835490,-168.53003241,0.00024787,4]
[420288063,1775911835501,-164.31917393,0.00024787,4]
[420288064,1775911835518,-214.58454632,0.00024787,4]
[420288065,1775911835529,-163.83195837,0.00024787,4]
[420288066,1775911835540,-150.0,0.00024791,4]
[420288067,1775911835550,-150.0,0.00024793,4]
[420288068,1775911835566,-150.0,0.00024794,4]
[420288069,1775911835575,-150.0,0.00024795,4]
[420288070,1775911835585,-57456.1573983,0.00024811,2]
[420288071,1775911835597,-168.53003241,0.00024815,4]
[420288072,1775911835613,-164.31917393,0.00024815,4]
[420288073,1775911835622,-214.58454632,0.00024815,4]
[420288074,1775911835645,-163.83195837,0.00024815,4]
[420288075,1775911835656,-681.06,0.00024819,2]
[420288076,1775911835667,-335.8,0.00024822,2]
[420288077,1775911835683,-150.0,0.00024823,4]
[420288078,1775911835702,-150.0,0.00024823,4]
[420288079,1775911835715,-183.69,0.00024824,2]
[420288080,1775911835742,-150.0,0.00024826,4]
[420288081,1775911835753,-4233.60982337,0.00024829,2]
[420288082,1775911835762,-168.53003241,0.00024843,4]
[420288083,1775911835796,-164.31917393,0.00024843,4]
[420288084,1775911835814,-214.58454632,0.00024843,4]
[420288085,1775911835834,-163.83195837,0.00024843,4]
[420288086,1775911835847,-150.0,0.00024851,4]
[420288087,1775911835867,-150.0,0.00024854,4]
[420288088,1775911835886,-150.0,0.00024856,4]
[420288089,1775911835896,-150.0,0.00024858,4]
[420288090,1775911835923,-168.53003241,0.0002487,4]
[420288091,1775911835934,-164.31917393,0.0002487,4]
[420288092,1775911835946,-214.58454632,0.0002487,4]
[420288093,1775911835971,-163.83195837,0.0002487,4]
[420288094,1775911835983,-500.0,0.00024873,2]
[420288095,1775911835997,-166.09820228,0.00024873,2]
[420288096,1775911836013,-500.0,0.00024873,2]
[420288097,1775911836034,-500.0,0.00024873,2]
[420288098,1775911836044,-630.73809,0.00024873,2]
[420288099,1775911836058,-150.0,0.00024884,4]
[420288100,1775911836078,-150.0,0.00024889,4]
[420288101,1775911836088,-168.53003241,0.00024898,4]
[420288102,1775911836104,-164.31917393,0.00024898,4]
[420288103,1775911836132,-214.58454632,0.00024898,4]
[420288104,1775911836142,-163.83195837,0.00024898,4]
[420288105,1775911836167,-672.7442,0.000249,2]
[420288106,1775911836178,-63611.95537174,0.000249,2]
[420288107,1775911836788,-367.5852002,0.000249,2]
[420288112,1775911840010,637.865837,0.0002303,120]
[420288113,1775911841256,-150.0,0.00013318,2]
[420288114,1775911841266,-150.0,0.00013318,2]
[420288115,1775911841279,-150.0,0.00016318,2]
[420288116,1775911841305,-150.0,0.000166,2]
[420288117,1775911841315,-170.5973,0.000176,2]
[420288118,1775911841331,-6024.0,0.00022318,2]
[420288119,1775911841351,-132091.78993251,0.000249,2]
[420288176,1775911844276,-150.0,0.00013318,2]
[420288177,1775911844286,-2472.0,0.00013318,2]
[420288178,1775911844296,-284.1,0.00016116,2]
[420288179,1775911844310,-2472.0,0.00016318,2]
[420288180,1775911844320,-314.61,0.00017728,2]
[420288181,1775911844330,-500.0,0.00020099,2]
[420288182,1775911844747,-248.72727273,0.00020099,2]
[420288183,1775911844765,-500.0,0.00020099,2]
[420288184,1775911844783,-182852.42910155,0.000249,2]
[420288185,1775911844794,-1457.0,0.000249,10]
[420288186,1775911844819,-150.0,0.00024911,4]
[420288187,1775911844830,-150.0,0.00024915,4]
[420288188,1775911844840,-150.0,0.00024915,4]
[420288189,1775911844860,-150.0,0.00024919,4]
[420288190,1775911844875,-150.0,0.00024921,4]
[420288191,1775911844884,-168.53003241,0.00024926,4]
[420288192,1775911844913,-164.31917393,0.00024926,4]
[420288193,1775911844923,-214.58454632,0.00024926,4]
[420288194,1775911844947,-163.83195837,0.00024926,4]
[420288195,1775911844959,-150.0,0.00024928,4]
[420288196,1775911844969,-150.0,0.00024945,4]
[420288197,1775911845001,-150.0,0.00024953,4]
[420288198,1775911845011,-168.53003241,0.00024954,4]
[420288199,1775911845058,-164.31917393,0.00024954,4]
[420288200,1775911845068,-214.58454632,0.00024954,4]
[420288201,1775911845102,-163.83195837,0.00024954,4]
[420288202,1775911845113,-150.0,0.0002497,4]
[420288203,1775911845151,-150.0,0.00024976,4]
[420288204,1775911845163,-168.53003241,0.00024981,4]
[420288205,1775911845178,-164.31917393,0.00024981,4]
[420288206,1775911845190,-214.58454632,0.00024981,4]
[420288207,1775911845203,-46.60662697,0.00024981,4]
[420288211,1775911845749,-103.39337303,0.00024981,4]
[420288212,1775911845782,-163.83195837,0.00024981,4]
[420288213,1775911845799,-150.0,0.00024984,4]
[420288214,1775911845816,-64.14821127,0.0002499,2]
[420288222,1775911846115,-2472.0,0.00019318,2]
[420288224,1775911846125,-1529.0,0.000249,10]
[420288226,1775911846135,-6825.37469065,0.0002499,2]
[420288228,1775911846151,-248.0,0.00025,2]
[420288229,1775911846167,-526.0,0.00025,2]
[420288231,1775911846177,-1234.0,0.00025,2]
[420288233,1775911846187,-516.0,0.00025,2]
[420288236,1775911846204,-413.0,0.00025,2]
[420288237,1775911846213,-150.0,0.00025006,4]
[420288240,1775911846224,-150.0,0.00025006,4]
[420288242,1775911846236,-150.0,0.00025006,4]
[420288244,1775911846248,-168.53003241,0.00025009,4]
[420288245,1775911846260,-164.31917393,0.00025009,4]
[420288248,1775911846274,-214.58454632,0.00025009,4]
[420288249,1775911846303,-163.83195837,0.00025009,4]
[420288252,1775911846313,-150.0,0.00025016,4]
[420288254,1775911846335,-150.0,0.0002503,4]
[420288255,1775911846348,-168.53003241,0.00025037,4]
[420288257,1775911846359,-164.31917393,0.00025037,4]
[420288258,1775911846377,-150.0,0.00025037,4]
[420288259,1775911846392,-214.58454632,0.00025037,4]
[420288260,1775911846411,-150.0,0.00025037,4]
[420288261,1775911846441,-163.83195837,0.00025037,4]
[420288262,1775911846450,-150.0,0.00025044,4]
[420288263,1775911846468,-150.0,0.00025047,4]
[420288264,1775911846484,-168.53003241,0.00025065,4]
[420288265,1775911846494,-164.31917393,0.00025065,4]
[420288266,1775911846514,-214.58454632,0.00025065,4]
[420288267,1775911846527,-163.83195837,0.00025065,4]
[420288268,1775911846536,-150.0,0.00025067,4]
[420288269,1775911846549,-150.0,0.00025079,4]
[420288270,1775911846570,-150.0,0.0002509,4]
[420288271,1775911846585,-168.53003241,0.00025092,4]
[420288272,1775911846600,-164.31917393,0.00025092,4]
[420288273,1775911846613,-214.58454632,0.00025092,4]
[420288274,1775911846627,-163.83195837,0.00025092,4]
[420288275,1775911846639,-150.0,0.00025098,4]
[420288276,1775911846652,-150.0,0.00025098,4]
[420288277,1775911846665,-57456.15739823,0.00025099,2]
[420288278,1775911846679,-150.0,0.00025106,4]
[420288279,1775911846695,-150.0,0.00025111,4]
[420288280,1775911846709,-168.53003241,0.0002512,4]
[420288281,1775911846740,-164.31917393,0.0002512,4]
[420288282,1775911846768,-214.58454632,0.0002512,4]
[420288283,1775911846778,-163.83195837,0.0002512,4]
[420288284,1775911846792,-150.0,0.00025124,4]
[420288285,1775911846809,-150.0,0.00025128,4]
[420288286,1775911846825,-150.0,0.00025142,4]
[420288287,1775911846842,-168.53003241,0.00025148,4]
[420288288,1775911846852,-164.31917393,0.00025148,4]
[420288289,1775911846868,-214.58454632,0.00025148,4]
[420288290,1775911846882,-163.83195837,0.00025148,4]
[420288291,1775911846896,-150.0,0.0002515,4]
[420288292,1775911846924,-150.0,0.00025159,4]
[420288293,1775911846938,-150.0,0.00025169,4]
[420288294,1775911846956,-150.0,0.00025174,4]
[420288295,1775911846965,-168.53003241,0.00025176,4]
[420288296,1775911846979,-164.31917393,0.00025176,4]
[420288297,1775911846991,-214.58454632,0.00025176,4]
[420288298,1775911847001,-163.83195837,0.00025176,4]
[420288299,1775911847014,-150.0,0.00025189,4]
[420288300,1775911847023,-46.86877325,0.00025189,4]
[420288301,1775911848025,-509.58517807,0.00022318,2]
[420288302,1775911848085,-1962.41482193,0.00022318,2]
[420288303,1775911848095,-103.13122675,0.00025189,4]
[420288304,1775911848114,-168.53003241,0.00025203,4]
[420288305,1775911848125,-164.31917393,0.00025203,4]
[420288306,1775911848135,-214.58454632,0.00025203,4]
[420288307,1775911848149,-163.83195837,0.00025203,4]
[420288308,1775911848164,-150.0,0.00025205,4]
[420288309,1775911848174,-150.0,0.00025209,4]
[420288310,1775911848184,-150.0,0.0002522,4]
[420288311,1775911848197,-168.53003241,0.00025231,4]
[420288312,1775911848207,-164.31917393,0.00025231,4]
[420288313,1775911848223,-214.58454632,0.00025231,4]
[420288314,1775911848233,-150.0,0.00025231,4]
[420288315,1775911848242,-163.83195837,0.00025231,4]
[420288316,1775911848251,-150.0,0.00025237,4]
[420288317,1775911848263,-150.0,0.00025251,4]
[420288318,1775911848273,-168.53003241,0.00025259,4]
[420288319,1775911848283,-164.31917393,0.00025259,4]
[420288320,1775911848292,-214.58454632,0.00025259,4]
[420288321,1775911848303,-163.83195837,0.00025259,4]
[420288322,1775911848331,-6889.52290192,0.00025259,2]
[420288323,1775911848340,-150.0,0.00025268,4]
[420288324,1775911848351,-150.0,0.00025269,4]
[420288325,1775911848376,-150.0,0.00025281,4]
[420288326,1775911848394,-150.0,0.00025281,4]
[420288327,1775911848410,-150.0,0.00025281,4]
[420288328,1775911848427,-168.53003241,0.00025287,4]
[420288329,1775911848463,-164.31917393,0.00025287,4]
[420288330,1775911848480,-214.58454632,0.00025287,4]
[420288331,1775911848509,-163.83195837,0.00025287,4]
[420288332,1775911848519,-150.0,0.00025294,4]
[420288333,1775911848559,-150.0,0.000253,4]
[420288334,1775911848572,-6889.52290192,0.00025308,2]
[420288335,1775911848603,-150.0,0.00025312,4]
[420288336,1775911848617,-168.53003241,0.00025314,4]
[420288337,1775911848635,-164.31917393,0.00025314,4]
[420288338,1775911848645,-214.58454632,0.00025314,4]
[420288339,1775911848659,-163.83195837,0.00025314,4]
[420288340,1775911848678,-3774.0,0.00025318,2]
[420288341,1775911848703,-6024.0,0.00025318,2]
[420288342,1775911848711,-150.0,0.0002532,4]
[420288343,1775911848722,-150.0,0.00025329,4]
[420288344,1775911848741,-150.0,0.00025332,4]
[420288345,1775911848751,-205.028304,0.00025333,14]
[420288346,1775911848760,-168.53003241,0.00025342,4]
[420288347,1775911848777,-164.31917393,0.00025342,4]
[420288348,1775911848787,-150.0,0.00025342,4]
[420288349,1775911848796,-214.58454632,0.00025342,4]
[420288350,1775911848806,-150.0,0.00025342,4]
[420288351,1775911848828,-163.83195837,0.00025342,4]
[420288352,1775911848838,-27558.0916077,0.00025346,2]
[420288353,1775911848848,-150.0,0.00025356,4]
[420288354,1775911848859,-150.0,0.00025363,4]
[420288355,1775911848876,-168.53003241,0.0002537,4]
[420288356,1775911848885,-164.31917393,0.0002537,4]
[420288357,1775911848912,-214.58454632,0.0002537,4]
[420288358,1775911848922,-163.83195837,0.0002537,4]
[420288359,1775911848942,-150.0,0.00025373,4]
[420288360,1775911848959,-150.0,0.00025373,4]
[420288361,1775911848972,-57456.15739823,0.00025386,2]
[420288362,1775911849006,-150.0,0.00025389,4]
[420288363,1775911849016,-6889.52290192,0.00025389,2]
[420288364,1775911849042,-150.0,0.00025395,4]
[420288365,1775911849051,-168.53003241,0.00025398,4]
[420288366,1775911849063,-164.31917393,0.00025398,4]
[420288367,1775911849091,-214.58454632,0.00025398,4]
[420288368,1775911849101,-163.83195837,0.00025398,4]
[420288369,1775911849110,-150.0,0.00025403,4]
[420288370,1775911849126,-5683.0,0.00025409,2]
[420288371,1775911849138,-150.0,0.00025418,4]
[420288372,1775911849147,-168.53003241,0.00025425,4]
[420288373,1775911849158,-164.31917393,0.00025425,4]
[420288374,1775911849178,-214.58454632,0.00025425,4]
[420288375,1775911849207,-163.83195837,0.00025425,4]
[420288376,1775911849217,-150.0,0.00025426,4]
[420288377,1775911849242,-150.0,0.00025434,4]
[420288378,1775911849253,-150.0,0.00025448,4]
[420288379,1775911849263,-168.53003241,0.00025453,4]
[420288380,1775911849274,-164.31917393,0.00025453,4]
[420288381,1775911849284,-214.58454632,0.00025453,4]
[420288382,1775911849297,-163.83195837,0.00025453,4]
[420288383,1775911849310,-150.0,0.00025458,4]
[420288384,1775911849320,-150.0,0.00025464,4]
[420288385,1775911849338,-150.0,0.00025464,4]
[420288386,1775911849351,-168.53003241,0.00025481,4]
[420288387,1775911849361,-164.31917393,0.00025481,4]
[420288388,1775911849374,-214.58454632,0.00025481,4]
[420288389,1775911849386,-150.0,0.00025481,4]
[420288390,1775911849398,-163.83195837,0.00025481,4]
[420288391,1775911849409,-150.0,0.0002549,4]
[420288392,1775911849422,-150.0,0.00025495,4]
[420288393,1775911849439,-150.0,0.00025508,4]
[420288394,1775911849450,-168.53003241,0.00025509,4]
[420288395,1775911849463,-164.31917393,0.00025509,4]
[420288396,1775911849477,-214.58454632,0.00025509,4]
[420288397,1775911849490,-163.83195837,0.00025509,4]
[420288398,1775911849532,-150.0,0.00025517,4]
[420288399,1775911849856,-150.0,0.00025521,4]
[420288400,1775911849871,-150.0,0.00025525,4]
[420288401,1775911849882,-168.53003241,0.00025536,4]
[420288402,1775911849903,-164.31917393,0.00025536,4]
[420288403,1775911849924,-214.58454632,0.00025536,4]
[420288404,1775911849938,-163.83195837,0.00025536,4]
[420288405,1775911849948,-150.0,0.00025543,4]
[420288406,1775911849958,-6889.52290192,0.00025546,2]
[420288407,1775911849976,-150.0,0.00025553,4]
[420288408,1775911849985,-150.0,0.00025556,4]
[420288409,1775911849994,-150.0,0.00025556,4]
[420288410,1775911850004,-150.0,0.00025556,4]
[420288411,1775911850018,-168.53003241,0.00025564,4]
[420288412,1775911850027,-164.31917393,0.00025564,4]
[420288413,1775911850038,-214.58454632,0.00025564,4]
[420288414,1775911850047,-163.83195837,0.00025564,4]
[420288415,1775911850059,-150.0,0.00025568,4]
[420288416,1775911850069,-150.0,0.00025584,4]
[420288417,1775911850078,-150.0,0.00025586,4]
[420288418,1775911850088,-168.53003241,0.00025592,4]
[420288419,1775911850099,-164.31917393,0.00025592,4]
[420288420,1775911850111,-214.58454632,0.00025592,4]
[420288421,1775911850121,-163.83195837,0.00025592,4]
[420288422,1775911850130,-150.0,0.00025606,4]
[420288423,1775911850141,-150.0,0.00025616,4]
[420288424,1775911850152,-150.0,0.00025617,4]
[420288425,1775911850162,-168.53003241,0.0002562,4]
[420288426,1775911850172,-164.31917393,0.0002562,4]
[420288427,1775911850183,-214.58454632,0.0002562,4]
[420288428,1775911850193,-163.83195837,0.0002562,4]
[420288429,1775911850203,-500.0,0.00025635,2]
[420288430,1775911850212,-500.0,0.00025635,2]
[420288431,1775911850222,-500.0,0.00025635,2]
[420288432,1775911850234,-150.0,0.00025647,4]
[420288433,1775911850243,-150.0,0.00025647,4]
[420288434,1775911850253,-168.53003241,0.00025647,4]
[420288435,1775911850264,-164.31917393,0.00025647,4]
[420288436,1775911850279,-150.0,0.00025647,4]
[420288437,1775911850288,-150.0,0.00025647,4]
[420288438,1775911850298,-214.58454632,0.00025647,4]
[420288439,1775911850307,-150.0,0.00025647,4]
[420288440,1775911850321,-163.83195837,0.00025647,4]
[420288441,1775911850334,-150.0,0.00025668,4]
[420288442,1775911850343,-57456.15739823,0.00025674,2]
[420288443,1775911850353,-168.53003241,0.00025675,4]
[420288444,1775911850374,-164.31917393,0.00025675,4]
[420288445,1775911850385,-214.58454632,0.00025675,4]
[420288446,1775911850397,-163.83195837,0.00025675,4]
[420288447,1775911850410,-150.0,0.00025678,4]
[420288448,1775911850420,-150.0,0.00025679,4]
[420288449,1775911850429,-244.91444643,0.00025686,2]
[420288450,1775911850441,-150.0,0.00025687,4]
[420288451,1775911850453,-168.53003241,0.00025703,4]
[420288452,1775911850466,-164.31917393,0.00025703,4]
[420288453,1775911850476,-214.58454632,0.00025703,4]
[420288454,1775911850485,-163.83195837,0.00025703,4]
[420288455,1775911850498,-150.0,0.00025709,4]
[420288456,1775911850511,-150.0,0.00025711,4]
[420288457,1775911850521,-150.0,0.00025713,4]
[420288458,1775911850533,-168.53003241,0.00025731,4]
[420288459,1775911850546,-164.31917393,0.00025731,4]
[420288460,1775911850572,-214.58454632,0.00025731,4]
[420288461,1775911850582,-150.0,0.00025731,4]
[420288462,1775911850604,-163.83195837,0.00025731,4]
[420288463,1775911850613,-150.0,0.00025739,4]
[420288464,1775911850625,-150.0,0.00025739,4]
[420288465,1775911850638,-150.0,0.00025742,4]
[420288466,1775911850660,-150.0,0.00025747,4]
[420288467,1775911850669,-168.53003241,0.00025759,4]
[420288468,1775911850679,-164.31917393,0.00025759,4]
[420288469,1775911850690,-214.58454632,0.00025759,4]
[420288470,1775911850705,-163.83195837,0.00025759,4]
[420288471,1775911850714,-150.0,0.0002577,4]
[420288472,1775911850723,-150.0,0.00025774,4]
[420288473,1775911850735,-168.53003241,0.00025786,4]
[420288474,1775911850746,-164.31917393,0.00025786,4]
[420288475,1775911850756,-214.58454632,0.00025786,4]
[420288476,1775911850773,-163.83195837,0.00025786,4]
[420288477,1775911850784,-150.0,0.00025793,4]
[420288478,1775911850794,-150.0,0.000258,4]
[420288479,1775911850815,-150.0,0.00025805,4]
[420288480,1775911850827,-150.0,0.00025807,4]
[420288481,1775911850838,-692.0,0.00025811,2]
[420288482,1775911850864,-168.53003241,0.00025814,4]
[420288483,1775911850877,-164.31917393,0.00025814,4]
[420288484,1775911850895,-214.58454632,0.00025814,4]
[420288485,1775911850918,-163.83195837,0.00025814,4]
[420288486,1775911850931,-6889.52290192,0.00025821,2]
[420288487,1775911850948,-150.0,0.00025831,4]
[420288488,1775911850970,-150.0,0.00025831,4]
[420288489,1775911851010,-150.0,0.00025831,4]
[420288490,1775911851030,-150.0,0.00025831,4]
[420288491,1775911851061,-200.0,0.00025837,60]
[420288492,1775911851115,-825.0,0.00025837,30]
[420288493,1775911851162,-150.0,0.00025837,4]
[420288494,1775911851203,-168.53003241,0.00025842,4]
[420288495,1775911851219,-164.31917393,0.00025842,4]
[420288496,1775911851260,-214.58454632,0.00025842,4]
[420288497,1775911851270,-163.83195837,0.00025842,4]
[420288498,1775911851293,-150.0,0.00025856,4]
[420288499,1775911851302,-150.0,0.00025861,4]
[420288500,1775911851312,-150.0,0.00025867,4]
[420288501,1775911851329,-150.0,0.00025869,4]
[420288502,1775911851339,-168.53003241,0.0002587,4]
[420288503,1775911851348,-164.31917393,0.0002587,4]
[420288504,1775911851358,-214.58454632,0.0002587,4]
[420288505,1775911851376,-163.83195837,0.0002587,4]
[420288506,1775911851386,-150.0,0.00025892,4]
[420288507,1775911851396,-168.53003241,0.00025897,4]
[420288508,1775911851410,-164.31917393,0.00025897,4]
[420288509,1775911851422,-214.58454632,0.00025897,4]
[420288510,1775911851443,-163.83195837,0.00025897,4]
[420288511,1775911851452,-200.0,0.000259,9]
[420288512,1775911851461,-150.0,0.000259,4]
[420288513,1775911851475,-150.0,0.00025909,4]
[420288514,1775911851489,-150.0,0.00025918,4]
[420288515,1775911851510,-150.0,0.00025922,4]
[420288516,1775911851527,-150.0,0.00025922,4]
[420288517,1775911851541,-168.53003241,0.00025925,4]
[420288518,1775911851556,-164.31917393,0.00025925,4]
[420288519,1775911851579,-214.58454632,0.00025925,4]
[420288520,1775911851596,-163.83195837,0.00025925,4]
[420288521,1775911851624,-150.0,0.00025926,4]
[420288522,1775911851634,-150.0,0.00025932,4]
[420288523,1775911851668,-168.53003241,0.00025953,4]
[420288524,1775911851677,-164.31917393,0.00025953,4]
[420288525,1775911851705,-150.0,0.00025953,4]
[420288526,1775911851720,-214.58454632,0.00025953,4]
[420288527,1775911851752,-150.0,0.00025953,4]
[420288528,1775911851762,-163.83195837,0.00025953,4]
[420288529,1775911851779,-150.0,0.00025963,4]
[420288530,1775911851806,-1116.0,0.00025979,2]
[420288531,1775911851820,-168.53003241,0.00025981,4]
[420288532,1775911851848,-164.31917393,0.00025981,4]
[420288533,1775911851857,-214.58454632,0.00025981,4]
[420288534,1775911851872,-150.0,0.00025981,4]
[420288535,1775911851887,-163.83195837,0.00025981,4]
[420288536,1775911851902,-150.0,0.00025983,4]
[420288537,1775911851912,-150.0,0.00025986,4]
[420288538,1775911851925,-150.0,0.00025995,4]
[420288539,1775911851942,-168.53003241,0.00026008,4]
[420288540,1775911851951,-164.31917393,0.00026008,4]
[420288541,1775911851970,-214.58454632,0.00026008,4]
[420288542,1775911851984,-163.83195837,0.00026008,4]
[420288543,1775911851994,-150.0,0.00026014,4]
[420288544,1775911852007,-150.0,0.00026014,4]
[420288545,1775911852021,-150.0,0.00026027,4]
[420288546,1775911852031,-168.53003241,0.00026036,4]
[420288547,1775911852041,-164.31917393,0.00026036,4]
[420288548,1775911852051,-214.58454632,0.00026036,4]
[420288549,1775911852064,-163.83195837,0.00026036,4]
[420288550,1775911852074,-150.0,0.00026043,4]
[420288551,1775911852086,-150.0,0.00026044,4]
[420288552,1775911852100,-150.0,0.00026046,4]
[420288553,1775911852109,-150.0,0.00026058,4]
[420288554,1775911852126,-168.53003241,0.00026064,4]
[420288555,1775911852138,-164.31917393,0.00026064,4]
[420288556,1775911852147,-214.58454632,0.00026064,4]
[420288557,1775911852158,-163.83195837,0.00026064,4]
[420288558,1775911852174,-150.0,0.00026075,4]
[420288559,1775911852186,-150.0,0.0002609,4]
[420288560,1775911852198,-164.31917393,0.00026092,4]
[420288561,1775911852212,-168.53003241,0.00026092,4]
[420288562,1775911852235,-214.58454632,0.00026092,4]
[420288563,1775911852249,-163.83195837,0.00026092,4]
[420288564,1775911852265,-150.0,0.00026105,4]
[420288565,1775911852278,-150.0,0.00026105,4]
[420288566,1775911852293,-150.0,0.00026105,4]
[420288567,1775911852319,-150.0,0.00026105,4]
[420288568,1775911852330,-150.0,0.00026105,4]
[420288569,1775911852343,-150.0,0.00026105,4]
[420288570,1775911852366,-6889.52290192,0.00026109,2]
[420288571,1775911852377,-168.53003241,0.00026119,4]
[420288572,1775911852390,-164.31917393,0.00026119,4]